bitfinex-derivatives/quotes_SOLF0:USTF0_20251216
["timestamp","ask_amount","ask_price","bid_price","bid_amount"]
[1765867381775,7.14736944,126.97,126.95,3.44005457]
[1765867383785,0.05746944,126.97,126.95,3.44005457]
[1765867387389,0.05746944,126.97,126.96,5.69866964]
[1765867392794,0.05746944,126.97,126.96,3.08]
[1765867392997,0.05746944,126.97,126.96,5.69866964]
[1765867403507,0.05746944,126.97,126.96,3.08]
[1765867410008,7.14726944,126.97,126.96,3.08]
[1765867411411,0.05746944,126.97,126.96,3.08]
[1765867424417,0.05746944,126.97,126.96,5.69921814]
[1765867428525,0.05746944,126.97,126.96,3.08]
[1765867443434,7.14726944,126.97,126.96,3.08]
[1765867443636,0.05746944,126.97,126.96,3.08]
[1765867447634,0.05746944,126.97,126.96,17.70802086]
[1765867450241,7.0881,127.01,126.96,3.08]
[1765867450442,7.0881,127.01,126.98,3.11]
[1765867451243,7.14143596,127.01,126.98,3.16496889]
[1765867451734,7.0883,127.0,126.98,3.16496889]
[1765867456244,0.05333596,127.01,126.98,3.16496889]
[1765867457941,7.0881,127.0,126.98,3.16496889]
[1765867490080,0.05333596,127.01,126.98,3.16496889]
[1765867490971,7.0887,126.99,126.98,3.16496889]
[1765867497984,7.0887,126.99,126.98,0.05496889]
[1765867512005,7.0887,126.99,126.98,3.38496889]
[1765867512402,7.0887,126.99,126.98,0.05496889]
[1765867534016,9.70755872,126.99,126.98,0.05496889]
[1765867538517,110.2895,126.97,126.93,17.68414784]
[1765867538814,112.90835872,126.97,126.93,3.06]
[1765867539115,7.0912,126.95,126.94,3.06]
[1765867544420,0.05539785,126.96,126.95,3.06]
[1765867544613,0.05539785,126.96,126.95,20.30300656]
[1765867544807,0.05539785,126.96,126.95,5.67885872]
[1765867545009,0.05539785,126.96,126.95,20.30300656]
[1765867547912,7.0893,126.98,126.95,20.30300656]
[1765867547913,7.0887,126.99,126.96,3.06]
[1765867548116,7.0887,126.99,126.98,5.67885872]
[1765867548619,7.0881,127.01,126.99,3.06]
[1765867548815,7.0881,127.01,126.99,3.11994231]
[1765867548816,7.14219842,127.01,126.99,3.11994231]
[1765867549012,7.14219842,127.01,127.0,5.67885872]
[1765867551218,0.05409842,127.01,127.0,5.67885872]
[1765867552620,2.61885872,127.06,127.01,3.06]
[1765867552819,112.81755872,127.08,127.03,3.06]
[1765867553017,7.0853,127.06,127.03,3.06]
[1765867553717,7.13603092,127.06,127.03,3.12023276]
[1765867559731,0.05073092,127.06,127.03,3.12023276]
[1765867560444,0.05073092,127.06,127.05,3.06]
[1765867561936,0.00073092,127.06,127.05,3.06]
[1765867578556,0.00073092,127.06,127.05,35.14573626]
[1765867578762,7.0819,127.12,127.07,3.38]
[1765867578958,7.0819,127.12,127.09,3.38]
[1765867579667,7.0819,127.12,127.09,3.43550259]
[1765867581355,7.0807,127.14,127.09,3.43550259]
[1765867581750,4.08573626,127.15,127.09,3.43550259]
[1765867582662,114.21023626,127.16,127.09,3.43550259]
[1765867582864,7.081,127.13,127.09,3.43550259]
[1765867584964,7.0801,127.15,127.09,10.51840259]
[1765867585153,177.0387,127.17,127.11,3.43582175]
[1765867586165,110.1187,127.17,127.11,3.43582175]
[1765867586757,7.0804,127.14,127.11,3.43582175]
[1765867586964,114.19633626,127.18,127.11,3.43582175]
[1765867587869,7.0798,127.15,127.11,3.43582175]
[1765867590252,110.1306,127.15,127.11,3.43582175]
[1765867590654,110.1261,127.16,127.11,3.43582175]
[1765867591865,7.0805,127.14,127.11,3.43582175]
[1765867596765,7.081,127.13,127.11,3.43582175]
[1765867599874,7.081,127.13,127.11,0.05582175]
[1765867600074,7.081,127.13,127.11,3.13582175]
[1765867602873,7.0814,127.12,127.11,0.05582175]
[1765867603680,7.0808,127.14,127.11,0.05582175]
[1765867604178,7.0798,127.15,127.11,3.13582175]
[1765867605479,114.19633626,127.18,127.11,0.05582175]
[1765867605480,4.08573626,127.16,127.11,0.05582175]
[1765867605676,114.21073626,127.16,127.11,0.05582175]
[1765867606172,7.0809,127.13,127.11,0.05582175]
[1765867607382,4.08573626,127.16,127.11,3.13582175]
[1765867608882,7.0803,127.14,127.11,3.13582175]
[1765867609576,7.0803,127.14,127.11,0.05582175]
[1765867610374,7.0803,127.14,127.11,3.13582175]
[1765867614385,110.1311,127.15,127.11,0.05582175]
[1765867614980,7.0814,127.12,127.11,3.13582175]
[1765867615187,7.0814,127.12,127.11,0.05582175]
[1765867615784,110.1311,127.15,127.11,3.13582175]
[1765867616678,110.1263,127.16,127.11,3.13582175]
[1765867617975,7.0809,127.13,127.11,3.13582175]
[1765867620888,7.0814,127.12,127.11,3.13582175]
[1765867621376,7.0814,127.12,127.11,0.05582175]
[1765867622290,7.0809,127.13,127.11,0.05582175]
[1765867622494,7.0809,127.13,127.11,3.18582175]
[1765867624783,7.0809,127.13,127.11,0.05582175]
[1765867625794,7.0814,127.12,127.11,0.05582175]
[1765867628598,7.0831,127.09,127.08,66.9]
[1765867628897,110.174,127.1,127.05,17.75414784]
[1765867629101,110.174,127.1,127.05,3.13]
[1765867629789,0.05231695,127.09,127.06,3.18328086]
[1765867629990,7.0838,127.08,127.06,3.18328086]
[1765867630299,7.0838,127.08,127.06,0.05328086]
[1765867631505,9.70017911,127.08,127.06,0.05328086]
[1765867631990,7.0862,127.04,127.0,5.74637911]
[1765867632190,7.0862,127.04,127.01,3.13]
[1765867633096,7.13680129,127.04,127.01,3.18735852]
[1765867636403,0.05060129,127.04,127.01,3.18735852]
[1765867638295,0.05060129,127.04,127.03,3.13]
[1765867643323,0.00060129,127.04,127.03,3.13]
[1765867649622,0.00060129,127.04,127.03,5.74637911]
[1765867652537,0.00060129,127.04,127.03,3.13]
[1765867653334,0.00060129,127.04,127.02,33.88637911]
[1765867653525,0.00060129,127.04,127.03,3.27]
[1765867659141,7.08650129,127.04,127.01,3.32735852]
[1765867659644,7.08650129,127.04,127.02,3.27]
[1765867661232,0.00060129,127.04,127.02,3.27]
[1765867662946,0.00060129,127.04,127.03,3.27]
[1765867672754,0.00060129,127.04,127.02,3.27]
[1765867676255,7.08670129,127.04,127.01,17.95150636]
[1765867676550,0.00060129,127.04,127.01,3.32735852]
[1765867677956,7.0865,127.03,127.01,3.32735852]
[1765867678358,7.0865,127.03,127.01,0.05735852]
[1765867678558,7.087,127.02,127.01,0.05735852]
[1765867683058,7.08700129,127.04,127.01,0.05735852]
[1765867683361,9.7033804,127.04,127.01,3.24735852]
[1765867683952,7.0866,127.03,127.01,0.05735852]
[1765867685862,7.0866,127.03,127.01,3.24735852]
[1765867686069,7.0866,127.03,127.01,5.86373763]
[1765867686367,7.0866,127.03,127.02,3.19]
[1765867686571,7.0866,127.03,127.01,5.86373763]
[1765867687754,7.0866,127.03,127.01,3.24735852]
[1765867689062,7.0866,127.03,127.01,0.05735852]
[1765867690065,7.0866,127.03,127.01,3.24735852]
[1765867690564,7.0866,127.03,127.02,3.19]
[1765867690965,0.00060129,127.04,127.02,3.19]
[1765867691960,0.00060129,127.04,127.01,0.05735852]
[1765867692967,7.0867,127.03,127.01,0.05735852]
[1765867701478,0.00060129,127.04,127.01,0.05735852]
[1765867704875,7.087,127.02,127.01,0.05735852]
[1765867707386,110.2535,127.01,126.98,14.62414784]
[1765867707588,110.2535,127.01,126.96,3.19]
[1765867708470,0.05480461,127.0,126.97,3.24001498]
[1765867709983,7.0892,126.98,126.97,3.24001498]
[1765867712184,7.0892,126.98,126.97,0.05001498]
[1765867712385,7.0892,126.98,126.97,3.42001498]
[1765867714588,7.0892,126.98,126.97,0.05001498]
[1765867734107,7.0892,126.98,126.97,3.30001498]
[1765867734609,7.14350461,127.0,126.98,3.25]
[1765867740512,7.0887,126.99,126.97,3.30001498]
[1765867744424,0.05480461,127.0,126.97,3.30001498]
[1765867744620,0.05480461,127.0,126.98,3.25]
[1765867755225,7.14290461,127.0,126.98,3.25]
[1765867769139,0.05480461,127.0,126.98,3.25]
[1765867769847,0.05480461,127.0,126.98,5.86854246]
[1765867770142,0.05480461,127.0,126.99,3.25]
[1765867782563,110.2294,127.04,126.99,3.25]
[1765867782564,7.087,127.02,126.99,3.25]
[1765867783065,7.087,127.02,127.01,3.4]
[1765867786067,7.0876,127.01,127.0,0.05434154]
[1765867800476,7.0876,127.01,127.0,3.45434154]
[1765867800971,7.0876,127.01,127.0,0.05434154]
[1765867806087,7.0876,127.01,127.0,3.19434154]
[1765867806584,7.0876,127.01,127.0,0.05434154]
[1765867809791,7.087,127.02,127.0,3.19434154]
[1765867811995,0.05272968,127.03,127.02,3.14]
[1765867812888,7.13922968,127.03,127.02,3.14]
[1765867814989,7.13922968,127.03,127.01,5.75854246]
[1765867815399,7.13922968,127.03,127.01,3.14]
[1765867822102,7.0873,127.02,127.0,3.19434154]
[1765867822804,0.05272968,127.03,127.0,3.19434154]
[1765867824605,0.05272968,127.03,127.0,35.28299424]
[1765867824805,0.05272968,127.03,127.01,3.14]
[1765867828010,0.05272968,127.03,127.01,10.2274]
[1765867828204,0.05272968,127.03,127.02,3.14]
[1765867830607,0.05272968,127.03,127.02,10.227]
[1765867830816,7.0838,127.08,127.03,3.14]
[1765867831911,7.0838,127.08,127.04,3.19901115]
[1765867836418,7.0843,127.07,127.04,3.19901115]
[1765867837522,110.1921,127.08,127.04,0.05901115]
[1765867838211,7.085,127.06,127.04,0.05901115]
[1765867844623,110.2009,127.07,127.04,0.05901115]
[1765867845422,7.0853,127.05,127.04,0.05901115]
[1765867867843,7.0848,127.07,127.04,3.15901115]
[1765867868239,7.0848,127.07,127.04,0.05901115]
[1765867868443,7.085,127.06,127.04,0.05901115]
[1765867871837,114.26406526,127.1,127.04,3.15901115]
[1765867872050,110.1676,127.11,127.04,3.15901115]
[1765867872246,115.94001387,127.1,127.04,3.15901115]
[1765867872539,110.1761,127.1,127.04,3.15901115]
[1765867873944,7.0842,127.08,127.04,3.15901115]
[1765867875344,7.0842,127.08,127.05,3.1]
[1765867876242,7.0845,127.07,127.05,3.1]
[1765867876439,112.79786862,127.09,127.04,3.37901115]
[1765867878747,112.78256862,127.11,127.05,3.32]
[1765867878938,112.78256862,127.11,127.04,2.67397977]
[1765867878939,112.78256862,127.11,127.07,3.37784577]
[1765867880047,7.0832,127.09,127.07,3.37784577]
[1765867881151,7.0832,127.09,127.07,0.05784577]
[1765867881649,2.61496862,127.11,127.07,3.24784577]
[1765867883039,7.0826,127.1,127.07,3.24784577]
[1765867883653,7.0831,127.09,127.07,3.24784577]
[1765867884254,7.0825,127.11,127.07,3.24784577]
[1765867884446,7.0825,127.11,127.08,3.22]
[1765867884646,112.75636862,127.14,127.08,3.22]
[1765867884948,112.75636862,127.14,127.1,0.05932652]
[1765867885248,177.0279,127.16,127.1,0.05932652]
[1765867885249,2.61496862,127.15,127.1,3.27932652]
[1765867885647,7.0815,127.12,127.1,0.05932652]
[1765867888348,7.082,127.11,127.1,0.05932652]
[1765867902557,7.082,127.11,127.1,3.13932652]
[1765867905356,220.2211,127.18,127.11,3.08]
[1765867905660,220.2211,127.18,127.13,3.13596821]
[1765867905661,110.1134,127.17,127.13,3.13596821]
[1765867906059,7.0801,127.15,127.13,3.13596821]
[1765867908053,110.1082,127.18,127.15,3.08]
[1765867908253,110.0855,127.21,127.16,3.08]
[1765867908454,110.0855,127.21,127.17,3.13047354]
[1765867908759,7.0777,127.19,127.17,0.05047354]
[1765867909459,9.69165028,127.19,127.17,0.05047354]
[1765867910154,7.0777,127.19,127.17,0.00047354]
[1765867910356,2.61395028,127.18,127.17,0.00047354]
[1765867911360,7.13583558,127.19,127.17,0.00047354]
[1765867911556,2.61395028,127.18,127.17,0.00047354]
[1765867912664,0.05813558,127.19,127.17,0.00047354]
[1765867913766,0.05813558,127.19,127.17,3.08047354]
[1765867918062,0.05813558,127.19,127.17,5.69442382]
[1765867918263,0.05813558,127.19,127.18,3.08]
[1765867918465,0.05813558,127.19,127.17,3.08047354]
[1765867918963,7.13583558,127.19,127.17,3.08047354]
[1765867919364,0.05813558,127.19,127.17,3.08047354]
[1765867920265,110.0342,127.27,127.19,3.08]
[1765867920454,110.0342,127.27,127.21,5.69395028]
[1765867920659,7.0746,127.25,127.22,3.08]
[1765867920854,2.61395028,127.28,127.24,3.08]
[1765867921055,7.0738,127.26,127.24,3.08]
[1765867921256,110.0387,127.26,127.24,0.05986938]
[1765867921463,112.65265028,127.26,127.24,0.05986938]
[1765867921767,7.0742,127.25,127.24,0.05986938]
[1765867921968,110.0503,127.25,127.19,3.08]
[1765867922371,112.66425028,127.25,127.19,3.08]
[1765867922768,2.61395028,127.23,127.19,3.08]
[1765867922971,0.05737884,127.22,127.2,0.05684415]
[1765867923169,0.05737884,127.22,127.2,3.34684415]
[1765867923766,0.05737884,127.22,127.2,0.05684415]
[1765867924166,0.05737884,127.22,127.2,3.34684415]
[1765867925867,0.05737884,127.22,127.21,2.61395028]
[1765867926056,0.05737884,127.22,127.21,5.90395028]
[1765867926256,2.61395028,127.29,127.22,3.29]
[1765867926453,2.61395028,127.29,127.23,5.90395028]
[1765867926656,7.0728,127.28,127.23,3.29]
[1765867926855,7.0728,127.28,127.23,5.90395028]
[1765867927170,2.61395028,127.29,127.24,0.05295271]
[1765867927471,2.61395028,127.29,127.24,3.34295271]
[1765867927768,7.0732,127.27,127.24,3.34295271]
[1765867929076,9.68625028,127.29,127.24,3.34295271]
[1765867929776,7.0723,127.29,127.24,3.34295271]
[1765867930067,7.0727,127.28,127.24,3.34295271]
[1765867930280,2.61395028,127.3,127.24,3.34295271]
[1765867930563,2.61395028,127.3,127.26,3.29]
[1765867930770,9.68585028,127.3,127.27,0.05131949]
[1765867930966,2.61395028,127.3,127.27,0.05131949]
[1765867931960,7.0721,127.29,127.27,0.05131949]
[1765867933284,9.68605028,127.29,127.27,0.05131949]
[1765867937573,11.1471986,127.29,127.27,0.05131949]
[1765867941183,114.0929986,127.28,127.21,3.29]
[1765867942078,0.05715197,127.26,127.23,0.05437489]
[1765867942272,0.05715197,127.26,127.24,3.29]
[1765867947378,7.13085197,127.26,127.24,3.29]
[1765867947778,0.05715197,127.26,127.23,3.34437489]
[1765867953094,7.0742,127.25,127.23,3.34437489]
[1765867957787,0.05715197,127.26,127.23,3.34437489]
[1765867959397,7.13135197,127.26,127.23,3.34437489]
[1765867959696,0.05715197,127.26,127.23,31.34437489]
[1765867959993,0.05715197,127.26,127.24,3.24]
[1765867960399,0.05715197,127.26,127.25,3.24]
[1765867960696,7.0725,127.29,127.25,3.24]
[1765867961203,220.0,127.31,127.25,3.24]
[1765867961494,220.0,127.31,127.27,3.2969793]
[1765867961801,7.0725,127.28,127.27,3.2969793]
[1765867962893,7.072,127.29,127.27,3.2969793]
[1765867967106,7.0725,127.28,127.27,0.0569793]
[1765867967494,7.0725,127.28,127.27,3.2969793]
[1765867969490,7.0725,127.28,127.27,0.0569793]
[1765867971604,7.0725,127.28,127.27,3.2969793]
[1765867974310,7.0725,127.28,127.27,0.0569793]
[1765867975107,11.14579778,127.28,127.27,0.0569793]
[1765867975406,7.0725,127.28,127.27,0.0569793]
[1765867976806,7.0725,127.28,127.23,70.04]
[1765867976807,7.0744,127.25,127.23,70.04]
[1765867977808,7.12604296,127.25,127.23,70.0941556]
[1765867980511,7.12604296,127.25,127.23,66.8541556]
[1765867981011,7.12604296,127.25,127.23,0.0541556]
[1765867981708,4.07329778,127.24,127.23,0.0541556]
[1765867982308,4.07329778,127.24,127.18,70.09]
[1765867982309,114.13429778,127.24,127.18,70.09]
[1765867982811,4.07329778,127.24,127.19,3.29]
[1765867983008,7.0755,127.23,127.19,3.29]
[1765867983408,7.0755,127.23,127.21,3.29]
[1765867983409,0.05634382,127.22,127.21,3.29]
[1765867983609,7.13244382,127.22,127.2,3.33963029]
[1765867985209,7.13244382,127.22,127.2,0.04963029]
[1765867989210,7.0775,127.19,127.18,54.37563029]
[1765867989516,110.1014,127.19,127.16,3.29]
[1765867990109,7.0786,127.17,127.16,3.29]
[1765867990305,7.0786,127.17,127.15,0.05636741]
[1765867990511,7.13051959,127.17,127.15,3.34636741]
[1765867991921,7.13051959,127.17,127.15,0.05636741]
[1765867992116,4.07329778,127.16,127.15,0.05636741]
[1765867992318,7.13051959,127.17,127.15,0.05636741]
[1765867992523,7.13051959,127.17,127.15,3.34636741]
[1765868000342,0.05191959,127.17,127.15,3.34636741]
[1765868006746,0.05191959,127.17,127.15,31.34636741]
[1765868007044,0.05191959,127.17,127.16,3.29]
[1765868008947,0.05191959,127.17,127.16,5.90099922]
[1765868009339,110.0726,127.22,127.17,3.29]
[1765868009544,7.0776,127.19,127.17,3.29]
[1765868010340,7.13660457,127.19,127.17,3.34286936]
[1765868012850,0.05900457,127.19,127.17,3.34286936]
[1765868013343,0.05900457,127.19,127.18,5.91099922]
[1765868013541,0.05900457,127.19,127.18,3.3]
[1765868014343,7.13650457,127.19,127.18,3.3]
[1765868016149,7.0781,127.18,127.17,0.05286936]
[1765868016350,7.0781,127.18,127.17,3.35286936]
[1765868017049,0.05900457,127.19,127.17,3.35286936]
[1765868017246,0.05900457,127.19,127.18,5.91099922]
[1765868018353,0.05900457,127.19,127.18,3.3]
[1765868028654,7.0764,127.22,127.18,3.3]
[1765868028848,2.61099922,127.23,127.19,3.3]
[1765868029245,110.0386,127.26,127.19,3.3]
[1765868029452,0.04984103,127.24,127.22,3.3]
[1765868030948,7.12464103,127.24,127.22,3.3]
[1765868041754,0.04984103,127.24,127.22,3.3]
[1765868050279,7.12474103,127.24,127.21,3.29673491]
[1765868054376,0.04984103,127.24,127.21,3.29673491]
[1765868057690,7.12464103,127.24,127.21,3.29673491]
[1765868060192,0.04984103,127.24,127.21,3.29673491]
[1765868064096,7.12474103,127.24,127.21,3.29673491]
[1765868066098,7.0754,127.23,127.21,3.29673491]
[1765868070802,7.0759,127.22,127.21,3.29673491]
[1765868071996,7.12464103,127.24,127.21,3.29673491]
[1765868076303,0.04984103,127.24,127.21,3.29673491]
[1765868086114,7.12464103,127.24,127.21,3.29673491]
[1765868091421,0.04984103,127.24,127.21,10.37313491]
[1765868091620,0.04984103,127.24,127.22,3.33]
[1765868095423,0.04984103,127.24,127.23,3.33]
[1765868098623,0.04984103,127.24,127.23,70.15]
[1765868099017,0.04984103,127.24,127.23,77.2253]
[1765868099219,7.0725,127.28,127.24,3.33]
[1765868100214,7.0725,127.28,127.26,3.33]
[1765868100624,109.9907,127.32,127.26,3.33]
[1765868100812,114.05350042,127.33,127.28,3.38002712]
[1765868101014,7.0713,127.31,127.28,3.38002712]
[1765868101325,114.03360042,127.35,127.28,3.38002712]
[1765868101526,5.75781681,127.34,127.28,3.38002712]
[1765868101722,114.03360042,127.35,127.28,3.38002712]
[1765868101919,5.75781681,127.34,127.28,3.38002712]
[1765868102123,114.03360042,127.35,127.28,3.38002712]
[1765868102328,7.0704,127.32,127.28,10.45252712]
[1765868102532,7.0704,127.32,127.29,3.13]
[1765868103922,124.0827,127.37,127.29,3.13]
[1765868103923,109.9319,127.38,127.31,3.13]
[1765868104227,109.9319,127.38,127.33,3.18602033]
[1765868104530,109.935,127.38,127.33,3.18602033]
[1765868106021,7.0682,127.36,127.33,3.18602033]
[1765868108132,7.0688,127.35,127.33,0.05602033]
[1765868108438,7.0688,127.35,127.33,3.18602033]
[1765868110833,7.0688,127.35,127.33,0.05602033]
[1765868111638,11.14250042,127.35,127.33,0.05602033]
[1765868112336,7.0712,127.31,127.29,69.93]
[1765868112729,7.0712,127.31,127.29,3.13]
[1765868113428,7.12110783,127.31,127.29,3.18744345]
[1765868114841,7.12110783,127.31,127.29,0.05744345]
[1765868118837,11.19480825,127.31,127.29,0.05744345]
[1765868119039,7.0731,127.27,127.23,3.13]
[1765868119539,7.0737,127.26,127.23,3.13]
[1765868120137,7.13301578,127.26,127.23,3.18154896]
[1765868125245,0.05931578,127.26,127.24,3.13]
[1765868130950,0.05931578,127.26,127.25,3.13]
[1765868137956,7.0719,127.3,127.26,3.14]
[1765868138758,0.05247313,127.29,127.27,0.05373786]
[1765868138950,0.05247313,127.29,127.27,3.19373786]
[1765868141157,0.05247313,127.29,127.27,0.05373786]
[1765868141456,0.05247313,127.29,127.27,3.19373786]
[1765868141648,0.05247313,127.29,127.27,0.05373786]
[1765868142158,2.66074688,127.29,127.27,0.05373786]
[1765868142657,7.0725,127.28,127.27,0.05373786]
[1765868158772,7.0725,127.28,127.27,3.19373786]
[1765868160171,7.0725,127.28,127.27,0.05373786]
[1765868161571,7.0725,127.28,127.27,3.19373786]
[1765868162172,7.0725,127.28,127.27,0.05373786]
[1765868162672,7.0725,127.28,127.27,3.16373786]
[1765868163370,7.0725,127.28,127.27,0.05373786]
[1765868163964,0.05247313,127.29,127.27,3.16373786]
[1765868164565,0.00247313,127.29,127.28,5.71827375]
[1765868165575,0.00247313,127.29,127.28,7.29827375]
[1765868167274,0.00247313,127.29,127.28,21.91876253]
[1765868167475,0.00247313,127.29,127.28,7.29461469]
[1765868168071,0.00247313,127.29,127.28,21.91876253]
[1765868169282,0.00247313,127.29,127.28,7.29461469]
[1765868169480,0.00247313,127.29,127.28,21.91876253]
[1765868169674,0.00247313,127.29,127.28,35.29461469]
[1765868173783,2.60461469,127.38,127.3,3.11]
[1765868173977,2.60461469,127.38,127.32,3.11]
[1765868174581,2.60461469,127.38,127.33,5.71461469]
[1765868174775,2.60461469,127.38,127.34,0.0581915]
[1765868174976,7.0676,127.37,127.34,0.0581915]
[1765868176588,7.0676,127.37,127.34,3.1681915]
[1765868177984,7.0682,127.36,127.34,3.1681915]
[1765868178182,7.0682,127.36,127.34,0.0581915]
[1765868178580,9.67281469,127.36,127.34,0.0581915]
[1765868181385,7.0682,127.36,127.34,0.0581915]
[1765868182195,114.01237682,127.37,127.34,0.0581915]
[1765868183893,7.0686,127.35,127.34,0.0581915]
[1765868190090,7.0686,127.35,127.34,3.1681915]
[1765868190999,7.0686,127.35,127.34,0.0581915]
[1765868191400,7.0679,127.37,127.35,3.11]
[1765868197308,109.9172,127.4,127.35,3.11]
[1765868198010,109.9131,127.41,127.35,3.11]
[1765868198210,109.9131,127.41,127.37,0.05986082]
[1765868202719,7.067,127.38,127.37,0.05986082]
[1765868215521,7.0685,127.36,127.33,3.11]
[1765868216519,7.12357772,127.36,127.33,3.16541488]
[1765868217825,7.0686,127.35,127.33,3.16541488]
[1765868218521,7.0686,127.35,127.33,0.05541488]
[1765868218712,7.0692,127.34,127.33,0.05541488]
[1765868219626,7.0692,127.34,127.33,3.16541488]
[1765868221224,7.12357772,127.36,127.33,3.16541488]
[1765868221821,0.05507772,127.36,127.33,3.16541488]
[1765868222528,0.05507772,127.36,127.34,3.07]
[1765868222724,117.23463087,127.43,127.34,7.13967682]
[1765868222920,5.76114556,127.42,127.37,3.07]
[1765868223119,109.8775,127.45,127.37,3.07]
[1765868223421,7.0655,127.41,127.37,3.07]
[1765868223622,109.8888,127.43,127.37,3.07]
[1765868223817,109.8888,127.43,127.39,0.05508441]
[1765868224928,7.066,127.4,127.39,0.05508441]
[1765868233533,109.8888,127.43,127.39,0.05508441]
[1765868233534,7.0655,127.41,127.39,0.05508441]
[1765868239035,7.0659,127.4,127.39,0.05508441]
[1765868250845,7.0659,127.4,127.39,3.12508441]
[1765868251244,7.0659,127.4,127.39,0.05508441]
[1765868253441,9.66835081,127.4,127.39,0.05508441]
[1765868254651,7.0659,127.4,127.39,0.05508441]
[1765868254856,9.66835081,127.4,127.39,0.05508441]
[1765868257454,7.067,127.39,127.34,3.12]
[1765868257651,7.067,127.39,127.36,3.12]
[1765868258356,7.12601383,127.39,127.36,3.17810403]
[1765868258750,0.05901383,127.39,127.36,3.17810403]
[1765868263559,2.66146464,127.39,127.36,0.05810403]
[1765868263859,2.66146464,127.39,127.36,3.17810403]
[1765868264955,7.0672,127.38,127.36,3.17810403]
[1765868265155,7.0672,127.38,127.36,0.05810403]
[1765868266959,7.0672,127.38,127.36,3.17810403]
[1765868267850,7.0672,127.38,127.36,0.05810403]
[1765868268462,9.66965081,127.38,127.36,0.05810403]
[1765868272567,7.0672,127.38,127.36,0.05810403]
[1765868272759,2.60245081,127.37,127.36,0.05810403]
[1765868277067,9.66995081,127.37,127.36,0.05810403]
[1765868277264,109.9751,127.33,127.3,3.12]
[1765868277459,109.9751,127.33,127.29,3.12]
[1765868277460,112.57755081,127.33,127.29,3.12]
[1765868278365,7.0713,127.31,127.3,0.05263542]
[1765868280368,9.67375081,127.31,127.3,0.05263542]
[1765868285769,76.43375081,127.31,127.3,0.05263542]
[1765868286072,7.0735,127.27,127.25,3.36]
[1765868286875,7.12852935,127.27,127.25,3.41126119]
[1765868299987,0.05502935,127.27,127.25,3.41126119]
[1765868305782,0.05502935,127.27,127.25,10.48536119]
[1765868305986,0.05502935,127.27,127.26,3.36]
[1765868307590,7.0709,127.31,127.27,3.36]
[1765868308580,7.0709,127.31,127.25,32.0726571]
[1765868308581,0.0569613,127.3,127.29,3.36]
[1765868313577,7.1283613,127.3,127.29,3.36]
[1765868313781,0.0569613,127.3,127.28,0.05955156]
[1765868314896,7.072,127.29,127.28,0.05955156]
[1765868315989,110.0269,127.27,127.23,3.29]
[1765868316894,7.0745,127.25,127.23,3.29]
[1765868317091,7.0745,127.25,127.23,3.34203433]
[1765868317292,7.13218779,127.25,127.23,0.05203433]
[1765868317801,7.13218779,127.25,127.23,3.34203433]
[1765868319296,7.13218779,127.25,127.23,0.05203433]
[1765868323604,7.13218779,127.25,127.23,3.34203433]
[1765868323901,7.13218779,127.25,127.23,0.05203433]
[1765868329403,110.0618,127.23,127.19,3.29]
[1765868329589,110.0618,127.23,127.17,3.29]
[1765868330102,7.077,127.2,127.17,3.29]
[1765868330407,7.13040264,127.2,127.17,3.3452441]
[1765868331304,7.0776,127.19,127.17,3.3452441]
[1765868331693,0.05340264,127.2,127.17,3.3452441]
[1765868331897,0.05340264,127.2,127.17,7.4179012]
[1765868332098,0.05340264,127.2,127.18,3.29]
[1765868335912,0.05340264,127.2,127.19,3.29]
[1765868340707,7.0757,127.23,127.2,3.29]
[1765868341226,7.0759,127.22,127.2,3.29]
[1765868341630,7.12828558,127.22,127.2,3.34664132]
[1765868342423,0.05238558,127.22,127.2,3.34664132]
[1765868353734,0.00238558,127.22,127.2,3.34664132]
[1765868356134,0.00238558,127.22,127.21,3.32]
[1765868357033,0.00238558,127.22,127.21,10.3964]
[1765868357223,0.00238558,127.22,127.21,77.2164]
[1765868358637,0.00238558,127.22,127.21,105.2164]
[1765868359533,0.00238558,127.22,127.21,119.84054784]
[1765868359738,109.9997,127.31,127.25,3.32]
[1765868360334,7.0725,127.28,127.25,3.32]
[1765868360733,7.12690444,127.28,127.25,3.37008967]
[1765868364238,7.0731,127.27,127.25,3.37008967]